fUSD/lending_fUSD_20240925
["ID","MTS","AMOUNT","RATE_DAILY","PERIOD"]
[339101181,1727247032300,-150.0,0.00011892,2]
[339101182,1727247032309,-164.637,0.00011905,2]
[339101184,1727247032319,-150.0,0.00011912,2]
[339101186,1727247032329,-501.97786434,0.00011913,2]
[339101188,1727247032340,-500.0,0.00011913,2]
[339101191,1727247032350,-150.0,0.00011924,2]
[339101192,1727247032361,-150.0,0.00011932,2]
[339101194,1727247032370,-778.57,0.00011945,2]
[339101196,1727247032380,-150.0,0.00011952,2]
[339101198,1727247032389,-164.637,0.0001196,2]
[339101200,1727247032399,-150.0,0.0001196,2]
[339101202,1727247032408,-150.0,0.00011971,2]
[339101204,1727247032418,-268.62,0.00011979,2]
[339101206,1727247032427,-150.0,0.00011991,2]
[339101208,1727247032437,-150.0,0.00011993,2]
[339101210,1727247032447,-150.0,0.00011996,2]
[339101212,1727247032456,-753.72,0.00012,2]
[339101213,1727247032465,-586.51163168,0.00012,2]
[339101231,1727247032629,-167.20836832,0.00012,2]
[339101233,1727247032640,-150.0,0.00012011,2]
[339101235,1727247032651,-164.637,0.00012014,2]
[339101237,1727247032662,-150.0,0.00012031,2]
[339101239,1727247032671,-150.0,0.00012033,2]
[339101240,1727247032681,-150.0,0.00012051,2]
[339101241,1727247032692,-150.0,0.00012051,2]
[339101242,1727247032703,-150.0,0.00012069,2]
[339101243,1727247032713,-164.637,0.00012069,2]
[339101244,1727247032723,-150.0,0.00012071,2]
[339101245,1727247032732,-195.73,0.00012071,2]
[339101246,1727247032742,-562.97,0.00012082,2]
[339101247,1727247032751,-182.37,0.00012082,2]
[339101248,1727247032761,-153.54,0.00012082,2]
[339101249,1727247032771,-150.0,0.0001209,2]
[339101250,1727247032781,-150.0,0.00012105,2]
[339101251,1727247032792,-150.0,0.00012108,2]
[339101252,1727247032802,-150.0,0.0001211,2]
[339101253,1727247032811,-164.637,0.00012125,2]
[339101254,1727247032820,-150.0,0.0001213,2]
[339101255,1727247032829,-150.0,0.00012141,2]
[339101256,1727247032838,-150.0,0.0001215,2]
[339101257,1727247032847,-255.0,0.00012152,2]
[339101258,1727247032856,-150.0,0.0001217,2]
[339101259,1727247032865,-150.0,0.00012178,2]
[339101260,1727247032875,-164.637,0.00012181,2]
[339101261,1727247032884,-150.0,0.00012189,2]
[339101262,1727247032894,-150.0,0.00012209,2]
[339101263,1727247032903,-150.0,0.00012214,2]
[339101264,1727247032912,-150.0,0.00012224,2]
[339101265,1727247032921,-150.0,0.00012229,2]
[339101266,1727247032931,-164.637,0.00012237,2]
[339101267,1727247032940,-150.0,0.00012249,2]
[339101268,1727247032951,-150.0,0.0001225,2]
[339101269,1727247032960,-150.0,0.00012262,2]
[339101270,1727247032969,-150.0,0.00012269,2]
[339101271,1727247032979,-150.0,0.00012286,2]
[339101272,1727247032988,-150.0,0.00012289,2]
[339101273,1727247032998,-150.0,0.00012308,2]
[339101274,1727247033007,-150.0,0.00012323,2]
[339101275,1727247033017,-150.0,0.00012328,2]
[339101276,1727247033026,-150.0,0.00012339,2]
[339101277,1727247033036,-150.0,0.00012348,2]
[339101278,1727247033045,-151.41,0.00012356,2]
[339101279,1727247033055,-150.0,0.00012359,2]
[339101280,1727247033064,-150.0,0.00012368,2]
[339101281,1727247033074,-150.0,0.00012388,2]
[339101282,1727247033085,-1703.57266068,0.00012389,2]
[339101283,1727247033097,-903.79434732,0.00012389,2]
[339101284,1727247033107,-150.0,0.00012395,2]
[339101285,1727247033117,-150.0,0.00012407,2]
[339101286,1727247033127,-150.0,0.00012427,2]
[339101287,1727247033137,-150.0,0.00012431,2]
[339101288,1727247033147,-150.0,0.00012447,2]
[339101289,1727247033156,-150.0,0.00012454,2]
[339101290,1727247033167,-150.0,0.00012467,2]
[339101291,1727247033176,-150.0,0.00012467,2]
[339101292,1727247033186,-150.0,0.00012487,2]
[339101293,1727247033195,-1046.20565268,0.00012489,2]
[339101298,1727247037818,-150.0,0.00012486,2]
[339101299,1727247037828,-20650.79104732,0.00012489,2]
[339101300,1727247037839,-10074.38416845,0.000125,2]
[339101301,1727247037849,-150.0,0.00012504,2]
[339101302,1727247037862,-150.0,0.00012507,2]
[339101303,1727247037874,-412.99038829,0.00012513,2]
[339101304,1727247037884,-150.0,0.00012526,2]
[339101305,1727247037893,-420.0,0.00012539,2]
[339101306,1727247037902,-150.0,0.0001254,2]
[339101307,1727247037913,-2607.367008,0.00012544,2]
[339101308,1727247037929,-150.0,0.00012546,2]
[339101309,1727247037939,-150.0,0.00012566,2]
[339101310,1727247037948,-150.0,0.0001257,2]
[339101311,1727247037957,-150.0,0.00012576,2]
[339101312,1727247037967,-150.0,0.00012579,2]
[339101313,1727247037975,-150.0,0.00012586,2]
[339101314,1727247037985,-500.0,0.00012598,2]
[339101315,1727247037994,-159.71256512,0.00012599,2]
[339101316,1727247038003,-1784.63455253,0.00012599,2]
[339101317,1727247038013,-1784.63455249,0.00012599,2]
[339101318,1727247038022,-1784.63455249,0.00012599,2]
[339101320,1727247038032,-159.71256512,0.00012599,2]
[339101321,1727247038041,-1784.63455249,0.00012599,2]
[339101322,1727247038050,-1784.63455249,0.00012599,2]
[339101323,1727247038060,-159.71256512,0.000126,2]
[339101324,1727247038069,-1784.63455249,0.000126,2]
[339101325,1727247038078,-1784.63455249,0.000126,2]
[339101326,1727247038087,-225.6092,0.000126,2]
[339101327,1727247038097,-3182.3907,0.000126,2]
[339101328,1727247038106,-2400.0,0.000126,2]
[339101329,1727247038115,-1136.44,0.000126,2]
[339101330,1727247038124,-159.71256512,0.000126,2]
[339101331,1727247038134,-1784.63455249,0.000126,2]
[339101332,1727247038143,-1784.63455249,0.000126,2]
[339101333,1727247038152,-3810.4606,0.000126,2]
[339101334,1727247038162,-3185.0946,0.000126,2]
[339101335,1727247038171,-450.0,0.000126,2]
[339101336,1727247038180,-300.86931318,0.000126,2]
[339101337,1727247038190,-489.3162,0.000126,2]
[339101338,1727247038200,-11437.551,0.000126,2]
[339101339,1727247038210,-151.34010265,0.000126,2]
[339101340,1727247038221,-159.71256512,0.000126,2]
[339101341,1727247038229,-202.21193904,0.000126,2]
[339101342,1727247038240,-202.71,0.000126,2]
[339101344,1727247038252,-152.23162237,0.000126,2]
[339101346,1727247038262,-152.23162237,0.000126,2]
[339101348,1727247038271,-152.23162237,0.000126,2]
[339101350,1727247038280,-152.23162237,0.000126,2]
[339101352,1727247038290,-152.23162237,0.000126,2]
[339101354,1727247038298,-152.23162237,0.000126,2]
[339101356,1727247038308,-152.23162237,0.000126,2]
[339101358,1727247038318,-152.23162237,0.000126,2]
[339101360,1727247038329,-152.23162237,0.000126,2]
[339101362,1727247038338,-152.23162237,0.000126,2]
[339101364,1727247038347,-152.23162237,0.000126,2]
[339101366,1727247038356,-152.23162237,0.000126,2]
[339101368,1727247038365,-152.23162237,0.000126,2]
[339101370,1727247038375,-152.23162237,0.000126,2]
[339101372,1727247038385,-152.23162237,0.000126,2]
[339101374,1727247038394,-152.23162237,0.000126,2]
[339101376,1727247038403,-152.23162237,0.000126,2]
[339101378,1727247038415,-152.23162237,0.000126,2]
[339101380,1727247038425,-152.23162237,0.000126,2]
[339101382,1727247038434,-152.73,0.000126,2]
[339101384,1727247038443,-208.78648408,0.000126,2]
[339101386,1727247038453,-208.78648408,0.000126,2]
[339101388,1727247038463,-208.78648408,0.000126,2]
[339101390,1727247038472,-208.78648408,0.000126,2]
[339101392,1727247038482,-208.78648408,0.000126,2]
[339101394,1727247038493,-208.78648408,0.000126,2]
[339101396,1727247038503,-208.78648408,0.000126,2]
[339101398,1727247038512,-208.78648408,0.000126,2]
[339101400,1727247038523,-208.78648408,0.000126,2]
[339101402,1727247038533,-208.78648408,0.000126,2]
[339101404,1727247038544,-208.78648408,0.000126,2]
[339101407,1727247038554,-208.78648408,0.000126,2]
[339101409,1727247038564,-208.78648408,0.000126,2]
[339101411,1727247038573,-208.78648408,0.000126,2]
[339101413,1727247038585,-208.78648408,0.000126,2]
[339101415,1727247038594,-208.78648408,0.000126,2]
[339101417,1727247038604,-208.78648408,0.000126,2]
[339101419,1727247038613,-208.78648408,0.000126,2]
[339101421,1727247038624,-208.78648408,0.000126,2]
[339101423,1727247038633,-209.28,0.000126,2]
[339101425,1727247038642,-1784.63455249,0.000126,2]
[339101427,1727247038652,-1296.0,0.000126,2]
[339101429,1727247038662,-150.0,0.00012606,2]
[339101431,1727247038671,-150.0,0.00012612,2]
[339101433,1727247038680,-150.0,0.00012625,2]
[339101435,1727247038689,-150.0,0.00012645,2]
[339101437,1727247038698,-150.0,0.00012649,2]
[339101439,1727247038707,-764.256,0.00012657,2]
[339101440,1727247038717,-157.163,0.00012657,2]
[339101442,1727247038726,-150.0,0.00012665,2]
[339101444,1727247038734,-267.15378696,0.00012685,2]
[339101446,1727247038744,-150.0,0.00012685,2]
[339101448,1727247038754,-201.00000001,0.00012685,2]
[339101450,1727247038763,-150.8781928,0.00012685,2]
[339101452,1727247038772,-150.60035427,0.00012685,2]
[339101454,1727247038782,-19136.4041952,0.00012695,2]
[339101456,1727247038792,-776.9088234,0.00012695,2]
[339101458,1727247038802,-250000.0,0.00012699,2]
[339101460,1727247038811,-51585.4090934,0.00012699,2]
[339101462,1727247038821,-5882.79785396,0.00012699,2]
[339101464,1727247038830,-21020.58551706,0.00012699,2]
[339101466,1727247038839,-2271.1803342,0.00012699,2]
[339101468,1727247038848,-2607.367008,0.00012699,2]
[339101470,1727247038857,-110226.10735383,0.000127,2]
[339101472,1727247038867,-525.0,0.000127,2]
[339101474,1727247038876,-1296289.00082413,0.000127,2]
[339101476,1727247038888,-10412.41977738,0.000127,2]
[339101518,1727247039459,-9096.64373114,0.000127,2]
[339101521,1727247039470,-8947.21879473,0.000127,2]
[339101523,1727247039482,-8943.78386462,0.000127,2]
[339101525,1727247039493,-9077.54866152,0.000127,2]
[339101527,1727247039504,-8943.84023489,0.000127,2]
[339101535,1727247039571,-550.26174932,0.000127,2]
[339101654,1727247040721,-1001.8,0.000127,2]
[339101854,1727247042550,-6261.19959548,0.000127,2]
[339102143,1727247045525,-500.0,0.00012013,2]
[339102145,1727247045535,-150.0,0.00012541,2]
[339102147,1727247045545,-311.356214,0.000127,2]
[339102150,1727247045566,-11475.16853423,0.000127,2]
[339102152,1727247045579,-1602.697232,0.000127,2]
[339102186,1727247045908,-538.664,0.000127,2]
[339103638,1727247202883,150.0,9.851e-05,2]
[339103639,1727247202907,127.89,9.851e-05,2]
[339103655,1727247660563,1278.91359888,0.00022,120]
[339103657,1727247717027,150.0,0.00011,2]
[339103658,1727247717048,150.0,0.00011,2]
[339103659,1727247717069,150.0,0.00011,2]
[339103660,1727247717090,150.0,0.00011,2]
[339103661,1727247717121,150.0,0.00011,2]
[339103662,1727247717142,150.0,0.00011,2]
[339103663,1727247717162,150.0,0.00011,2]
[339103664,1727247733163,283.88,9.547e-05,2]
[339103665,1727247756928,1000.0,0.00022,120]
[339103666,1727247769191,500.0,0.00021,60]
[339103669,1727247846309,150.0,0.00010959,2]
[339103670,1727247846330,5.29,0.00010959,2]
[339103706,1727248231583,-1000.0,0.00011395,2]
[339103707,1727248231592,-250.0,0.00011403,2]
[339103708,1727248231602,-537.23,0.00011404,2]
[339103709,1727248231611,-336.65,0.00011413,2]
[339103710,1727248231621,-150.0,0.00011416,2]
[339103711,1727248231631,-150.0,0.00011416,2]
[339103712,1727248231640,-150.0,0.00011416,2]
[339103713,1727248231650,-304.785,0.0001143,2]
[339103714,1727248231662,-349.955,0.0001143,2]
[339103715,1727248231672,-422.05909904,0.00011431,2]
[339103716,1727248231684,-1860.92090096,0.00011431,2]
[339103717,1727248231702,-250.0,0.00011438,2]
[339103718,1727248231711,-2993.78,0.00011477,2]
[339103719,1727248231721,-499.99,0.00011477,2]
[339103720,1727248231730,-185.7,0.00011481,2]
[339103721,1727248231740,-300.0,0.00011519,2]
[339103722,1727248231750,-172.71,0.0001152,2]
[339103723,1727248231759,-466.9,0.00011529,2]
[339103724,1727248231769,-1029.91,0.00011559,2]
[339103725,1727248231779,-247.54,0.00011796,2]
[339103726,1727248231788,-283.88,0.00011811,2]
[339103727,1727248231798,-10000.0,0.00012134,2]
[339103728,1727248231808,-171.234417,0.00012389,2]
[339103729,1727248231818,-228.312556,0.00012389,2]
[339103730,1727248231828,-394.997218,0.00012389,2]
[339103731,1727248231837,-150.0,0.00012405,2]
[339103732,1727248231847,-449.21,0.00012405,2]
[339103733,1727248231856,-150.0,0.00012405,2]
[339103734,1727248231866,-150.0,0.00012405,2]
[339103735,1727248231875,-150.0,0.00012405,2]
[339103736,1727248231886,-150.0,0.00012405,2]
[339103737,1727248231895,-150.0,0.00012405,2]
[339103738,1727248231906,-435.85,0.00012405,2]
[339103739,1727248231916,-150.0,0.00012405,2]
[339103740,1727248231925,-150.0,0.00012405,2]
[339103741,1727248231935,-150.0,0.00012405,2]
[339103742,1727248231950,-150.0,0.00012405,2]
[339103743,1727248231959,-428.31,0.00012405,2]
[339103744,1727248231968,-150.0,0.00012405,2]
[339103745,1727248231978,-150.0,0.00012405,2]
[339103746,1727248231987,-358.13,0.00012405,2]
[339103747,1727248231997,-428.31,0.00012405,2]
[339103748,1727248232006,-150.0,0.00012405,2]
[339103749,1727248232016,-150.0,0.00012405,2]
[339103750,1727248232026,-297.02494408,0.000125,2]
[339103751,1727248232035,-5002.178935,0.000125,2]
[339103752,1727248232045,-394.997218,0.00012544,2]
[339103753,1727248232055,-150.0,0.00012579,2]
[339103754,1727248232065,-3601.376,0.0001258,2]
[339103755,1727248232074,-150.0,0.0001258,2]
[339103756,1727248232083,-5869.0,0.0001258,2]
[339103757,1727248232093,-1147.0,0.0001258,2]
[339103758,1727248232102,-6309.42137716,0.0001259,2]
[339103759,1727248232112,-171.234417,0.00012596,2]
[339103760,1727248232122,-3098.6984,0.00012599,2]
[339103761,1727248232132,-1197.89994944,0.00012599,2]
[339103762,1727248232141,-1197.89994935,0.00012599,2]
[339103763,1727248232151,-1197.89994935,0.00012599,2]
[339103764,1727248232160,-1197.89994935,0.00012599,2]
[339103765,1727248232169,-1197.89994935,0.00012599,2]
[339103766,1727248232179,-1197.89994935,0.000126,2]
[339103767,1727248232190,-1197.89994935,0.000126,2]
[339103768,1727248232199,-2200.77052569,0.000126,2]
[339103769,1727248232211,-480.67656907,0.000126,2]
[339103770,1727248232223,-1736.47786761,0.000126,2]
[339103771,1727248232234,-327.85685687,0.000126,2]
[339103772,1727248232245,-254.21818076,0.000126,2]
[339103773,1727248232256,-143.83468425,0.000126,2]
[339103774,1727248232267,-539.47059194,0.000126,2]
[339103775,1727248232279,-666.69472381,0.000126,2]
[339103776,1727248232288,-1197.89994935,0.000126,2]
[339103777,1727248232297,-616.60952673,0.000126,2]
[339103778,1727248232308,-581.29042262,0.000126,2]
[339103779,1727248232317,-324.2031,0.000126,2]
[339103780,1727248232327,-686.646,0.000126,2]
[339103781,1727248232336,-157.163,0.000126,2]
[339103782,1727248232345,-348.35468237,0.000126,2]
[339103783,1727248232354,-1197.89994935,0.000126,2]
[339103784,1727248232363,-237.85037377,0.000126,2]
[339103785,1727248232372,-184.34474514,0.000126,2]
[339103786,1727248232382,-184.84,0.000126,2]
[339103787,1727248232391,-153.84786713,0.000126,2]
[339103788,1727248232400,-153.84786713,0.000126,2]
[339103789,1727248232409,-153.84786713,0.000126,2]
[339103790,1727248232419,-153.84786713,0.000126,2]
[339103791,1727248232428,-153.84786713,0.000126,2]
[339103792,1727248232437,-153.84786713,0.000126,2]
[339103793,1727248232448,-153.84786713,0.000126,2]
[339103794,1727248232457,-153.84786713,0.000126,2]
[339103795,1727248232466,-153.84786713,0.000126,2]
[339103796,1727248232475,-153.84786713,0.000126,2]
[339103797,1727248232484,-153.84786713,0.000126,2]
[339103798,1727248232493,-153.84786713,0.000126,2]
[339103799,1727248232502,-153.84786713,0.000126,2]
[339103800,1727248232511,-153.84786713,0.000126,2]
[339103801,1727248232520,-153.84786713,0.000126,2]
[339103802,1727248232529,-153.84786713,0.000126,2]
[339103803,1727248232539,-153.84786713,0.000126,2]
[339103804,1727248232548,-154.34,0.000126,2]
[339103805,1727248232557,-1304.5697899,0.000126,2]
[339103806,1727248232568,-619.14994573,0.000126,2]
[339103807,1727248232580,-6558.09753364,0.000126,2]
[339103808,1727248232591,-4008.52322653,0.000126,2]
[339103809,1727248232601,-190.39693702,0.000126,2]
[339103810,1727248232610,-190.39693702,0.000126,2]
[339103811,1727248232619,-190.39693702,0.000126,2]
[339103812,1727248232629,-190.39693702,0.000126,2]
[339103813,1727248232638,-190.39693702,0.000126,2]
[339103814,1727248232647,-190.39693702,0.000126,2]
[339103815,1727248232656,-190.39693702,0.000126,2]
[339103816,1727248232665,-190.39693702,0.000126,2]
[339103817,1727248232674,-190.39693702,0.000126,2]
[339103818,1727248232683,-190.39693702,0.000126,2]
[339103819,1727248232694,-190.39693702,0.000126,2]
[339103820,1727248232703,-190.39693702,0.000126,2]
[339103821,1727248232713,-190.39693702,0.000126,2]
[339103822,1727248232722,-190.39693702,0.000126,2]
[339103823,1727248232731,-190.39693702,0.000126,2]
[339103824,1727248232740,-190.39693702,0.000126,2]
[339103825,1727248232749,-190.39693702,0.000126,2]
[339103826,1727248232758,-190.39693702,0.000126,2]
[339103827,1727248232767,-190.39693702,0.000126,2]
[339103828,1727248232777,-190.89,0.000126,2]
[339103829,1727248232786,-327.31635816,0.000126,2]
[339103830,1727248232796,-420.0,0.00012651,2]
[339103831,1727248232805,-404.85439471,0.00012673,2]
[339103832,1727248232817,-95.14560529,0.00012673,2]
[339103833,1727248232826,-367.4253813,0.00012673,2]
[339103834,1727248232838,-132.5746187,0.00012673,2]
[339103835,1727248232848,-152.3,0.0001269,2]
[339103836,1727248232857,-152.3,0.0001269,2]
[339103837,1727248232867,-152.3,0.0001269,2]
[339103838,1727248232876,-1276.21787425,0.00012695,2]
[339103839,1727248232887,-20983.64857115,0.00012695,2]
[339103840,1727248232898,-3954.9996457,0.00012695,2]
[339103841,1727248232907,-176.96,0.00012696,2]
[339103842,1727248232916,-500.0,0.00012699,2]
[339103843,1727248232925,-500.0,0.00012699,2]
[339103844,1727248232934,-500.0,0.00012699,2]
[339103845,1727248232944,-161.26514464,0.00012699,2]
[339103846,1727248232953,-500.0,0.00012699,2]
[339103847,1727248232963,-500.0,0.00012699,2]
[339103848,1727248232972,-500.0,0.00012699,2]
[339103849,1727248232981,-500.0,0.00012699,2]
[339103850,1727248232991,-500.0,0.00012699,2]
[339103851,1727248233000,-500.0,0.00012699,2]
[339103852,1727248233009,-250000.0,0.00012699,2]
[339103853,1727248233018,-394.997218,0.00012699,2]
[339103854,1727248233027,-130810.86291676,0.000127,2]
[339103855,1727248233037,-217810.84821232,0.000127,2]
[339103856,1727248233050,-505.38615579,0.000127,2]
[339103857,1727248233069,-3900.0,0.000127,2]
[339103858,1727248233082,-2334.93620487,0.000127,2]
[339103859,1727248233094,-7427.11462023,0.000127,2]
[339103860,1727248233106,-976.47953325,0.000127,2]
[339103861,1727248233118,-2637.74911535,0.000127,2]
[339103862,1727248233129,-751.39001507,0.000127,2]
[339103863,1727248233141,-759.64504625,0.000127,2]
[339103864,1727248233152,-1926.93036806,0.000127,2]
[339103865,1727248233163,-311.1478536,0.000127,2]
[339103866,1727248233175,-298.3,0.000127,2]
[339103867,1727248233186,-904.08234998,0.000127,2]
[339103868,1727248233199,-206593.42763305,0.000127,2]
[339103869,1727248233211,-555.90330277,0.000127,2]
[339103880,1727248237964,-178.518639,0.00012389,2]
[339103881,1727248237974,-201.195,0.0001258,2]
[339103882,1727248237984,-156.03,0.0001269,2]
[339103883,1727248237993,-156.03,0.0001269,2]
[339103884,1727248238003,-156.03,0.0001269,2]
[339103885,1727248238013,-156.03,0.0001269,2]
[339103886,1727248238022,-1001.850441,0.000127,2]
[339103887,1727248238034,-689.95816144,0.000127,2]
[339103888,1727248238059,-156.03,0.0001269,2]
[339103889,1727248238067,-8272515.79187658,0.000127,2]
[339103890,1727248238079,-764640.13984783,0.000127,2]
[339103891,1727248238089,-3125.7061928,0.000127,2]
[339103892,1727248238100,-1919.49092263,0.000127,2]
[339103893,1727248238111,-1107.2408442,0.000127,2]
[339103894,1727248238123,-19177.27197511,0.000127,2]
[339103895,1727248238134,-10231.82958382,0.000127,2]
[339103896,1727248238236,-14.58,0.000127,2]
[339103897,1727248238248,-1507.57772365,0.000127,2]
[339103898,1727248238259,-775.61553959,0.000127,2]
[339103899,1727248238280,-20495.04,0.000127,2]
[339103900,1727248238295,-2388.94041669,0.000127,2]
[339103901,1727248238306,-290636.29932956,0.000127,2]
[339103902,1727248238316,-3146.7938,0.000127,2]
[339103903,1727248238327,-435.35854429,0.000127,2]
[339103904,1727248238338,-3231.21500902,0.000127,2]
[339103905,1727248238353,-2939.34453431,0.000127,2]
[339103907,1727248238365,-21980.50124176,0.000127,2]
[339103910,1727248238377,-20046.88647575,0.000127,2]
[339103912,1727248238387,-3876.89018452,0.000127,2]
[339103914,1727248238398,-884.28010879,0.000127,2]
[339103915,1727248238424,-156.03,0.0001269,2]
[339103916,1727248238433,-189.8338106,0.000127,2]
[339103917,1727248238445,-2894.2789726,0.000127,2]
[339103918,1727248238457,-1708.49670922,0.000127,2]
[339103919,1727248238467,-25680.41096095,0.000127,2]
[339103920,1727248238478,-664.7658,0.000127,2]
[339103921,1727248238490,-394.14575585,0.000127,2]
[339103922,1727248238501,-9777.40127067,0.000127,2]
[339103923,1727248238511,-2631.51134235,0.000127,2]
[339103924,1727248238522,-1079.19611686,0.000127,2]
[339103925,1727248238533,-21293.89753412,0.000127,2]
[339103926,1727248238544,-965.47893929,0.000127,2]
[339103933,1727248239577,-150.0,0.00012601,2]
[339103934,1727248239586,-150.0,0.0001264,2]
[339103935,1727248239596,-156.03,0.0001269,2]
[339103936,1727248239605,-156.03,0.0001269,2]
[339103937,1727248239615,-156.03,0.0001269,2]
[339103938,1727248239624,-156.03,0.0001269,2]
[339103939,1727248239634,-239984.99245905,0.000127,2]
[339103940,1727248239646,-764.69339767,0.000127,2]
[339103941,1727248239657,-1332.6099,0.000127,2]
[339103942,1727248239669,-366477.76935272,0.000127,2]
[339103943,1727248239682,-40541.27075938,0.000127,2]
[339103944,1727248239735,-156.03,0.0001269,2]
[339103945,1727248239745,-500.11,0.000127,2]
[339103946,1727248239757,-539.06283141,0.000127,2]
[339103947,1727248239770,-828.75769103,0.000127,2]
[339103948,1727248239781,-1942.37721319,0.000127,2]
[339103949,1727248239792,-24634.55929569,0.000127,2]
[339103950,1727248239804,-1595.41732748,0.000127,2]
[339103951,1727248239815,-312.91,0.000127,2]
[339103952,1727248239827,-319.64,0.000127,2]
[339103953,1727248239924,-156.03,0.0001269,2]
[339103954,1727248239934,-142.35576017,0.000127,2]
[339104205,1727248242639,-156.03,0.0001269,2]
[339104207,1727248242650,-156.03,0.0001269,2]
[339104209,1727248242660,-55.63336575,0.0001269,2]
[339104211,1727248242672,-100.39663425,0.0001269,2]
[339104213,1727248242682,-156.03,0.0001269,2]
[339104215,1727248242694,-156.03,0.0001269,2]
[339104217,1727248242704,-90.73486988,0.0001269,2]
[339104220,1727248242722,-65.29513012,0.0001269,2]
[339104222,1727248242732,-156.03,0.0001269,2]
[339104224,1727248242742,-156.03,0.0001269,2]
[339104226,1727248242752,-156.03,0.0001269,2]
[339104228,1727248242762,-156.03,0.0001269,2]
[339104230,1727248242772,-156.03,0.0001269,2]
[339104232,1727248242782,-156.03,0.0001269,2]
[339104234,1727248242791,-3789.70317146,0.000127,2]
[339104236,1727248242803,-486.18500001,0.000127,2]
[339104239,1727248242814,-841.5247125,0.000127,2]
[339104242,1727248242843,-46018.50019622,0.000127,2]
[339104245,1727248242854,-71783.70110887,0.000127,2]
[339104247,1727248242865,-918.3487726,0.000127,2]
[339104249,1727248242878,-382.12258582,0.000127,2]
[339104251,1727248242890,-16896.2586345,0.000127,2]
[339104253,1727248242902,-821.406033,0.000127,2]
[339104256,1727248242913,-1241.55230948,0.000127,2]
[339104258,1727248242924,-833.87987711,0.000127,2]
[339104260,1727248242935,-1509.09021663,0.000127,2]
[339104262,1727248242947,-567.63859501,0.000127,2]
[339104265,1727248242964,-156.03,0.0001269,2]
[339104267,1727248242974,-3157.57911296,0.000127,2]
[339104269,1727248242986,-2927.37522779,0.000127,2]
[339104271,1727248242998,-1559.45168708,0.000127,2]
[339104273,1727248243009,-273.88727203,0.000127,2]
[339104275,1727248243021,-16910.57568415,0.000127,2]
[339104278,1727248243032,-369.12270208,0.000127,2]
[339104280,1727248243043,-938.47877362,0.000127,2]
[339104282,1727248243054,-361.6920653,0.000127,2]
[339104284,1727248243066,-1164.90682513,0.000127,2]
[339104286,1727248243078,-2557.84870107,0.000127,2]
[339104289,1727248243089,-1283.09584029,0.000127,2]
[339104291,1727248243100,-1146.82366185,0.000127,2]
[339104293,1727248243112,-1464.06406546,0.000127,2]
[339104295,1727248243123,-523.92304689,0.000127,2]
[339104297,1727248243134,-1732.275,0.000127,2]
[339104299,1727248243145,-10034.08847094,0.000127,2]
[339104301,1727248243156,-1149.07228572,0.000127,2]
[339104303,1727248243168,-10467.06883877,0.000127,2]
[339104305,1727248243179,-1128.06641355,0.000127,2]
[339104307,1727248243190,-912.45,0.000127,2]
[339104309,1727248243203,-6928.72079597,0.000127,2]
[339104506,1727248245641,-156.03,0.0001269,2]
[339104507,1727248245651,-156.03,0.0001269,2]
[339104508,1727248245661,-156.03,0.0001269,2]
[339104509,1727248245671,-156.03,0.0001269,2]
[339104510,1727248245681,-156.03,0.0001269,2]
[339104511,1727248245693,-156.03,0.0001269,2]